fUSD/lending_fUSD_20260126
["ID","MTS","AMOUNT","RATE_DAILY","PERIOD"]
[403622289,1769424642153,-250.0,0.00016912,2]
[403622290,1769424642164,-250.0,0.00016912,2]
[403622291,1769424642174,-250.0,0.00016912,2]
[403622292,1769424642185,-250.0,0.00016912,2]
[403622293,1769424642194,-250.0,0.00016912,2]
[403622294,1769424642204,-150.0,0.00016932,2]
[403622295,1769424642213,-637.0,0.00016932,2]
[403622296,1769424642223,-500.0,0.00016932,2]
[403622297,1769424642232,-200.18353258,0.00016983,2]
[403622298,1769424642242,-817.05,0.00016986,2]
[403622299,1769424642251,-150.0,0.00016986,2]
[403622300,1769424642260,-637.0,0.00016986,2]
[403622301,1769424642270,-500.0,0.00016986,2]
[403622302,1769424642279,-601.0,0.00017,2]
[403622303,1769424642288,-250.0,0.00017,2]
[403622304,1769424642298,-3245.3,0.00017009,2]
[403622305,1769424642307,-220.0,0.00017016,2]
[403622306,1769424642317,-158.53555796,0.00017026,2]
[403622307,1769424642327,-1086.0,0.0001704,2]
[403622308,1769424642336,-837.0,0.0001704,2]
[403622309,1769424642346,-1086.0,0.0001704,2]
[403622310,1769424642355,-150.0,0.00017041,2]
[403622311,1769424642365,-637.0,0.00017041,2]
[403622312,1769424642374,-350.0,0.00017041,2]
[403622313,1769424642384,-348.0,0.00017049,2]
[403622314,1769424642394,-12695.08106517,0.00017051,2]
[403622315,1769424642403,-168.39376605,0.00017051,2]
[403622316,1769424642413,-291.61362656,0.00017052,2]
[403622317,1769424642422,-348.0,0.00017064,2]
[403622318,1769424642431,-250.0,0.00017096,2]
[403622319,1769424642441,-637.0,0.00017096,2]
[403622320,1769424642451,-214.19484247,0.00017099,2]
[403622321,1769424642461,-224.32563052,0.00017099,2]
[403622322,1769424642470,-3500.0,0.000171,6]
[403622323,1769424642480,-2469.49936332,0.00017113,2]
[403622324,1769424642490,-3245.3,0.00017119,2]
[403622325,1769424642500,-382.57188636,0.00017141,2]
[403622326,1769424642510,-12695.08106517,0.00017145,2]
[403622327,1769424642520,-151.0,0.00017148,2]
[403622328,1769424642530,-1135.16674728,0.0001715,5]
[403622329,1769424642540,-500.0,0.0001715,2]
[403622330,1769424642550,-500.0,0.0001715,2]
[403622331,1769424642561,-500.0,0.0001715,2]
[403622332,1769424642570,-588.82402791,0.0001715,2]
[403622333,1769424642579,-500.0,0.0001715,2]
[403622334,1769424642588,-548.60289183,0.0001715,2]
[403622335,1769424642598,-500.0,0.0001715,2]
[403622336,1769424642608,-500.0,0.0001715,2]
[403622337,1769424642617,-500.0,0.0001715,2]
[403622338,1769424642627,-500.0,0.0001715,2]
[403622339,1769424642636,-500.0,0.0001715,2]
[403622340,1769424642645,-500.0,0.0001715,2]
[403622341,1769424642655,-500.0,0.0001715,2]
[403622342,1769424642664,-500.0,0.0001715,2]
[403622343,1769424642674,-531.00846507,0.0001715,2]
[403622344,1769424642683,-500.0,0.0001715,2]
[403622345,1769424642692,-500.0,0.0001715,2]
[403622346,1769424642701,-500.0,0.0001715,2]
[403622347,1769424642710,-500.0,0.0001715,2]
[403622348,1769424642720,-500.0,0.0001715,2]
[403622349,1769424642729,-500.0,0.0001715,2]
[403622350,1769424642738,-500.0,0.0001715,2]
[403622351,1769424642748,-637.0,0.00017151,2]
[403622352,1769424642757,-150.0,0.00017151,2]
[403622353,1769424642768,-655.65,0.00017151,2]
[403622354,1769424642778,-655.65,0.00017151,2]
[403622355,1769424642788,-655.65,0.00017151,2]
[403622357,1769424642798,-655.65,0.00017151,2]
[403622358,1769424642807,-655.65,0.00017151,2]
[403622359,1769424642817,-655.65,0.00017151,2]
[403622360,1769424642826,-655.65,0.00017151,2]
[403622361,1769424642836,-974.61,0.00017151,2]
[403622362,1769424642846,-487.0,0.00017151,2]
[403622363,1769424642855,-487.0,0.00017151,2]
[403622364,1769424642864,-487.0,0.00017151,2]
[403622365,1769424642873,-487.0,0.00017151,2]
[403622366,1769424642882,-487.0,0.00017151,2]
[403622367,1769424642891,-487.0,0.00017151,2]
[403622368,1769424642901,-487.0,0.00017151,2]
[403622369,1769424642911,-615.69,0.00017151,2]
[403622370,1769424642920,-168.39376603,0.00017195,2]
[403622371,1769424642929,-4700.0,0.000172,6]
[403622372,1769424642938,-637.0,0.00017206,2]
[403622373,1769424642948,-348.0,0.00017212,2]
[403622375,1769424642957,-166.66,0.00017224,2]
[403622376,1769424642966,-3245.3,0.00017229,2]
[403622377,1769424642976,-214.19484246,0.00017233,2]
[403622378,1769424642988,-12695.08106517,0.0001724,2]
[403622379,1769424642999,-817.05,0.0001726,2]
[403622381,1769424643009,-324.49,0.0001726,2]
[403622383,1769424643018,-937.52,0.0001726,2]
[403622385,1769424643028,-358.04,0.0001726,2]
[403622387,1769424643038,-558.8,0.0001726,2]
[403622388,1769424643048,-179.98,0.0001726,2]
[403622389,1769424643057,-637.0,0.0001726,2]
[403622390,1769424643067,-224.32563052,0.00017299,2]
[403622392,1769424643077,-5900.0,0.000173,6]
[403622394,1769424643086,-637.0,0.00017315,2]
[403622396,1769424643096,-12695.08106517,0.00017334,2]
[403622398,1769424643105,-168.39376603,0.00017338,2]
[403622399,1769424643114,-3245.3,0.00017339,2]
[403622401,1769424643124,-1086.0,0.0001736,2]
[403622403,1769424643134,-1086.0,0.0001736,2]
[403622404,1769424643143,-1086.0,0.0001736,2]
[403622405,1769424643152,-214.19484246,0.00017366,2]
[403622406,1769424643163,-637.0,0.0001737,2]
[403622407,1769424643172,-20050.25542141,0.00017384,2]
[403622408,1769424643181,-152.21,0.000174,2]
[403622409,1769424643191,-152.21,0.000174,2]
[403622410,1769424643200,-152.21,0.000174,2]
[403622411,1769424643209,-1100.0,0.000174,6]
[403622412,1769424643219,-500.0,0.00017413,2]
[403622413,1769424643229,-500.0,0.00017413,2]
[403622414,1769424643238,-500.0,0.00017413,2]
[403622415,1769424643248,-500.0,0.00017413,2]
[403622416,1769424643257,-500.0,0.00017413,2]
[403622417,1769424643267,-620.90734351,0.00017413,2]
[403622418,1769424643276,-884.0,0.00017424,2]
[403622419,1769424643286,-637.0,0.00017425,2]
[403622420,1769424643295,-12695.08106517,0.00017428,2]
[403622421,1769424643305,-1000.0,0.00017432,2]
[403622422,1769424643314,-1000.0,0.00017432,2]
[403622423,1769424643323,-1000.0,0.00017432,2]
[403622424,1769424643333,-1000.0,0.00017432,2]
[403622425,1769424643343,-1000.0,0.00017432,2]
[403622426,1769424643353,-1000.0,0.00017432,2]
[403622427,1769424643363,-1000.0,0.00017432,2]
[403622428,1769424643373,-1000.0,0.00017432,2]
[403622429,1769424643382,-656.61150819,0.00017432,2]
[403622430,1769424643392,-406.59218179,0.00017432,2]
[403622431,1769424643402,-502.64656649,0.00017432,2]
[403622432,1769424643411,-997.10035814,0.00017432,2]
[403622433,1769424643421,-1000.0,0.00017432,2]
[403622434,1769424643431,-1000.0,0.00017432,2]
[403622435,1769424643440,-348.0,0.00017438,2]
[403622436,1769424643449,-500.0,0.00017442,2]
[403622437,1769424643458,-500.0,0.00017442,2]
[403622438,1769424643468,-500.0,0.00017442,2]
[403622439,1769424643478,-500.0,0.00017442,2]
[403622440,1769424643488,-500.0,0.00017442,2]
[403622441,1769424643497,-500.0,0.00017442,2]
[403622442,1769424643507,-500.0,0.00017442,2]
[403622443,1769424643517,-500.0,0.00017442,2]
[403622444,1769424643526,-308.27666367,0.00017442,2]
[403622445,1769424643536,-500.0,0.00017442,2]
[403622446,1769424643546,-649.14983305,0.00017442,2]
[403622447,1769424643555,-5563.0,0.00017445,2]
[403622448,1769424643565,-3245.3,0.0001745,2]
[403622449,1769424643574,-391.25,0.00017452,2]
[403622450,1769424643584,-181.08010149,0.0001746,2]
[403622451,1769424643593,-151.0,0.0001746,2]
[403622452,1769424643603,-885.86649465,0.0001746,2]
[403622453,1769424643612,-637.0,0.0001748,2]
[403622454,1769424643621,-348.0,0.00017481,2]
[403622455,1769424643630,-500.0,0.00017499,2]
[403622456,1769424643640,-500.0,0.00017499,2]
[403622457,1769424643649,-214.19484246,0.000175,2]
[403622458,1769424643659,-224.32563052,0.000175,2]
[403622459,1769424643668,-1100.0,0.000175,6]
[403622460,1769424643677,-5563.0,0.00017509,2]
[403622461,1769424643687,-12695.08106517,0.00017523,2]
[403622462,1769424643696,-817.05,0.00017534,2]
[403622463,1769424643706,-637.0,0.00017534,2]
[403622464,1769424643715,-150.0,0.00017549,2]
[403622465,1769424643725,-3245.3,0.0001756,2]
[403622466,1769424643734,-348.0,0.0001757,2]
[403622467,1769424643744,-5563.0,0.00017574,2]
[403622468,1769424643754,-348.0,0.00017575,2]
[403622469,1769424643763,-637.0,0.00017589,2]
[403622470,1769424643772,-152.21,0.00017597,2]
[403622471,1769424643782,-1100.0,0.000176,6]
[403622472,1769424643791,-5563.0,0.00017607,2]
[403622473,1769424643800,-500.0,0.00017612,2]
[403622474,1769424643809,-12695.08106517,0.00017617,2]
[403622475,1769424643818,-867.98,0.00017627,2]
[403622476,1769424643828,-214.19484246,0.00017633,2]
[403622477,1769424643837,-601.0,0.00017636,2]
[403622478,1769424643847,-4887.30379414,0.0001764,2]
[403622479,1769424643856,-637.0,0.00017644,2]
[403622480,1769424643865,-667.4185933,0.00017657,2]
[403622481,1769424643875,-420.0,0.00017668,2]
[403622482,1769424643884,-3245.3,0.0001767,2]
[403622483,1769424643893,-837.0,0.0001768,2]
[403622484,1769424643903,-163.0,0.0001768,2]
[403622485,1769424643912,-1086.0,0.0001768,2]
[403622486,1769424643921,-1086.0,0.0001768,2]
[403622487,1769424643931,-326.94794312,0.00017691,2]
[403622488,1769424643940,-862.82079473,0.00017691,2]
[403622489,1769424643950,-1522.11815531,0.00017691,2]
[403622490,1769424643959,-2276.99772844,0.00017691,2]
[403622491,1769424643969,-3080.8503,0.00017691,2]
[403622492,1769424643978,-637.0,0.00017699,2]
[403622493,1769424643990,-224.32563052,0.000177,2]
[403622494,1769424644000,-1100.0,0.000177,6]
[403622495,1769424644009,-165.35,0.00017704,2]
[403622496,1769424644019,-615.0,0.00017706,2]
[403622497,1769424644030,-3477.0,0.00017706,2]
[403622498,1769424644040,-1408.0,0.00017706,2]
[403622499,1769424644049,-1333.0,0.00017706,2]
[403622500,1769424644058,-1269.0,0.00017706,2]
[403622501,1769424644069,-282.151,0.00017706,2]
[403622502,1769424644078,-150.0,0.00017706,2]
[403622503,1769424644088,-200.0,0.00017706,2]
[403622504,1769424644097,-266.0,0.00017706,2]
[403622505,1769424644107,-567.0,0.00017706,2]
[403622506,1769424644116,-195.894,0.00017706,2]
[403622507,1769424644125,-6570.0,0.00017706,2]
[403622508,1769424644135,-4831.0,0.00017706,2]
[403622509,1769424644144,-753.04363975,0.00017707,2]
[403622510,1769424644153,-12695.08106517,0.00017711,2]
[403622511,1769424644163,-200.0,0.00017715,2]
[403622512,1769424644172,-25000.0,0.00017742,3]
[403622513,1769424644182,-150.0,0.00017742,2]
[403622514,1769424644191,-152.21,0.00017749,2]
[403622515,1769424644200,-25000.0,0.0001775,3]
[403622516,1769424644210,-637.0,0.00017754,2]
[403622517,1769424644222,-166.66,0.00017757,2]
[403622518,1769424644231,-25000.0,0.00017759,3]
[403622519,1769424644242,-214.19484246,0.00017767,2]
[403622520,1769424644251,-25000.0,0.00017768,3]
[403622521,1769424644261,-152.21,0.00017775,2]
[403622522,1769424644270,-25000.0,0.00017777,3]
[403622523,1769424644279,-667.4185933,0.00017779,2]
[403622524,1769424644288,-3245.3,0.0001778,2]
[403622525,1769424644298,-291.93,0.00017781,2]
[403622526,1769424644307,-25000.0,0.00017786,3]
[403622527,1769424644316,-25000.0,0.00017794,3]
[403622528,1769424644326,-560.38,0.000178,2]
[403622529,1769424644337,-1500.0,0.000178,2]
[403622530,1769424644348,-1846.0,0.000178,6]
[403622531,1769424644357,-25000.0,0.00017803,3]
[403622532,1769424644366,-753.04363973,0.00017804,2]
[403622533,1769424644376,-12695.08106517,0.00017806,2]
[403622534,1769424644385,-500.0,0.00017808,2]
[403622535,1769424644395,-817.09,0.00017808,2]
[403622536,1769424644405,-637.0,0.00017808,2]
[403622537,1769424644415,-152.21,0.0001781,2]
[403622538,1769424644424,-348.0,0.00017811,2]
[403622539,1769424644433,-25000.0,0.00017812,3]
[403622540,1769424644443,-3320.476,0.00017814,2]
[403622541,1769424644452,-212.297,0.00017814,2]
[403622542,1769424644462,-304.31859105,0.00017815,2]
[403622543,1769424644471,-208.55,0.00017816,2]
[403622544,1769424644480,-151.0,0.00017818,2]
[403622545,1769424644490,-208.56,0.00017818,2]
[403622546,1769424644499,-500.0,0.00017819,2]
[403622547,1769424644733,-500.0,0.00017819,2]
[403622548,1769424644743,-500.0,0.00017819,2]
[403622549,1769424644754,-500.0,0.00017819,2]
[403622550,1769424644764,-8081.75591382,0.0001782,2]
[403622551,1769424644774,-2602.30488931,0.0001782,2]
[403622552,1769424644783,-25000.0,0.00017821,3]
[403622553,1769424644793,-25000.0,0.0001783,3]
[403622554,1769424644811,-6719.06641575,0.0001783,2]
[403622555,1769424644833,-152.16,0.00017834,2]
[403622556,1769424644854,-152.21,0.00017837,2]
[403622557,1769424644863,-25000.0,0.00017838,3]
[403622558,1769424644873,-25000.0,0.00017847,3]
[403622559,1769424644882,-200.0,0.00017855,2]
[403622560,1769424644892,-200.0,0.00017856,2]
[403622561,1769424644902,-25000.0,0.00017856,3]
[403622562,1769424644911,-200.0,0.00017856,2]
[403622563,1769424644921,-200.0,0.00017856,2]
[403622564,1769424644931,-500.0,0.00017863,2]
[403622565,1769424644941,-637.0,0.00017863,2]
[403622566,1769424644950,-25000.0,0.00017865,3]
[403622567,1769424644959,-152.21,0.00017872,2]
[403622568,1769424644969,-25000.0,0.00017874,3]
[403622569,1769424644978,-5563.0,0.0001788,2]
[403622570,1769424644992,-25000.0,0.00017882,3]
[403622571,1769424645002,-500.0,0.0001789,2]
[403622572,1769424645012,-500.0,0.0001789,2]
[403622573,1769424645021,-3245.3,0.0001789,2]
[403622574,1769424645032,-25000.0,0.00017891,3]
[403622575,1769424645041,-707.04345843,0.00017893,2]
[403622576,1769424645051,-707.04345838,0.00017894,2]
[403622577,1769424645061,-707.04345838,0.00017896,2]
[403622578,1769424645070,-707.04345838,0.00017897,2]
[403622579,1769424645080,-707.04345838,0.00017899,2]
[403622580,1769424645089,-214.19484246,0.000179,2]
[403622581,1769424645098,-10000.0,0.000179,2]
[403622582,1769424645108,-224.32563052,0.000179,2]
[403622583,1769424645117,-25000.0,0.000179,3]
[403622584,1769424645126,-667.4185933,0.000179,2]
[403622585,1769424645137,-1500.0,0.000179,2]
[403622586,1769424645156,-753.04363973,0.000179,2]
[403622587,1769424645166,-15423.19860128,0.000179,2]
[403622588,1769424645175,-707.04345838,0.000179,2]
[403622589,1769424645184,-1317.47992446,0.000179,2]
[403622590,1769424645193,-500.0,0.000179,2]
[403622591,1769424645203,-500.0,0.000179,2]
[403622592,1769424645215,-500.0,0.000179,2]
[403622593,1769424645225,-500.0,0.000179,2]
[403622594,1769424645235,-500.0,0.000179,2]
[403622595,1769424645245,-500.0,0.000179,2]
[403622596,1769424645254,-500.0,0.000179,2]
[403622597,1769424645263,-500.0,0.000179,2]
[403622598,1769424645273,-500.0,0.000179,2]
[403622599,1769424645282,-500.0,0.000179,2]
[403622600,1769424645291,-500.0,0.000179,2]
[403622601,1769424645301,-500.0,0.000179,2]
[403622602,1769424645312,-500.0,0.000179,2]
[403622603,1769424645329,-500.0,0.000179,2]
[403622604,1769424645338,-500.0,0.000179,2]
[403622605,1769424645348,-500.0,0.000179,2]
[403622606,1769424645357,-282.12869059,0.000179,2]
[403622607,1769424645366,-12276.0,0.000179,2]
[403622608,1769424645377,-867.98,0.00017901,2]
[403622609,1769424645386,-500.0,0.00017918,2]
[403622610,1769424645396,-637.0,0.00017918,2]
[403622611,1769424645406,-500.0,0.00017965,2]
[403622612,1769424645416,-150.0,0.00017965,2]
[403622613,1769424645426,-400.0,0.0001797,2]
[403622614,1769424645435,-400.0,0.0001797,2]
[403622615,1769424645445,-400.0,0.0001797,2]
[403622616,1769424645454,-704.68300704,0.0001797,2]
[403622617,1769424645463,-165.35,0.0001797,2]
[403622618,1769424645472,-500.0,0.00017972,2]
[403622619,1769424645481,-151.0,0.00017973,2]
[403622620,1769424645491,-151.0,0.00017973,2]
[403622621,1769424645501,-151.0,0.00017973,2]
[403622622,1769424645510,-151.0,0.00017973,2]
[403622623,1769424645519,-151.0,0.00017973,2]
[403622624,1769424645529,-151.0,0.00017973,2]
[403622625,1769424645539,-151.0,0.00017973,2]
[403622626,1769424645549,-151.0,0.00017973,2]
[403622627,1769424645559,-188.07834286,0.00017973,2]
[403622628,1769424645569,-6962.0,0.00017973,2]
[403622629,1769424645578,-1198.0,0.00017973,2]
[403622630,1769424645589,-637.0,0.00017973,2]
[403622631,1769424645599,-5800.0,0.00017979,2]
[403622632,1769424645608,-1500.0,0.0001798,2]
[403622633,1769424645617,-228.42973345,0.0001798,2]
[403622634,1769424645627,-1500.0,0.0001798,2]
[403622635,1769424645636,-1500.0,0.0001798,2]
[403622636,1769424645646,-801.03665033,0.0001798,2]
[403622637,1769424645655,-1500.0,0.0001798,2]
[403622638,1769424645664,-1500.0,0.0001798,2]
[403622639,1769424645674,-1181.38898729,0.0001798,2]
[403622640,1769424645683,-1500.0,0.0001798,2]
[403622641,1769424645693,-500.0,0.00017982,2]
[403622642,1769424645702,-5800.0,0.00017987,2]
[403622643,1769424645711,-500.0,0.00017989,2]
[403622644,1769424645720,-500.0,0.00017989,2]
[403622645,1769424645729,-500.0,0.00017989,2]
[403622646,1769424645739,-500.0,0.00017989,2]
[403622647,1769424645748,-200.0,0.00017989,2]
[403622648,1769424645757,-151.0,0.0001799,2]
[403622649,1769424645767,-382.57188636,0.0001799,2]
[403622650,1769424645777,-382.57188636,0.0001799,2]
[403622651,1769424645786,-246.13924238,0.00017992,2]
[403622652,1769424645795,-500.0,0.00017992,2]
[403622653,1769424645805,-500.0,0.00017992,2]
[403622654,1769424645814,-500.0,0.00017992,2]
[403622655,1769424645824,-500.0,0.00017992,2]
[403622656,1769424645834,-500.0,0.00017992,2]
[403622657,1769424645843,-345.82799971,0.00017992,2]
[403622658,1769424645853,-150.0,0.00017992,2]
[403622660,1769424645863,-12722.4859755,0.00017993,2]
[403622662,1769424645872,-874335.512925,0.00017993,2]
[403622664,1769424645881,-22154.16126,0.00017993,2]
[403622665,1769424645891,-46616.6465367,0.00017993,2]
[403622666,1769424645902,-6348.1112587,0.00017993,2]
[403622667,1769424645912,-152.094742,0.00017993,2]
[403622668,1769424645922,-688.356382,0.00017993,2]
[403622669,1769424645932,-688.356382,0.00017993,2]
[403622670,1769424645942,-688.356382,0.00017993,2]
[403622671,1769424645953,-1156.14358,0.00017993,2]
[403622672,1769424645963,-688.356382,0.00017993,2]
[403622673,1769424645973,-153.90414,0.00017993,2]
[403622674,1769424645987,-1156.14358,0.00017993,2]
[403622675,1769424646003,-153.90414,0.00017993,2]
[403622676,1769424646013,-160.11933,0.00017993,2]
[403622678,1769424646022,-1156.14358,0.00017993,2]
[403622680,1769424646032,-153.90414,0.00017993,2]
[403622682,1769424646041,-1156.14358,0.00017993,2]
[403622684,1769424646051,-153.90414,0.00017993,2]
[403622686,1769424646060,-151.0,0.00017993,2]
[403622688,1769424646070,-151.0,0.00017993,2]
[403622690,1769424646079,-30472.2725201,0.00017993,2]
[403622692,1769424646088,-314.164383,0.00017993,2]
[403622693,1769424646097,-151.0,0.00017993,2]
[403622694,1769424646106,-314.164383,0.00017993,2]
[403622695,1769424646115,-259.081353,0.00017993,2]
[403622696,1769424646125,-151.0,0.00017993,2]
[403622697,1769424646134,-314.164383,0.00017993,2]
[403622698,1769424646143,-259.081353,0.00017993,2]
[403622699,1769424646154,-173.748922,0.00017993,2]
[403622700,1769424646164,-183.707536,0.00017993,2]
[403622701,1769424646174,-314.164383,0.00017993,2]
[403622702,1769424646184,-259.081353,0.00017993,2]
[403622703,1769424646194,-183.707536,0.00017993,2]
[403622704,1769424646203,-259.081353,0.00017993,2]
[403622705,1769424646213,-183.707536,0.00017993,2]
[403622706,1769424646223,-183.707536,0.00017993,2]
[403622707,1769424646234,-151.0,0.00017993,2]
[403622708,1769424646243,-151.0,0.00017993,2]
[403622709,1769424646253,-151.0,0.00017993,2]
[403622710,1769424646263,-151.0,0.00017993,2]
[403622711,1769424646272,-151.0,0.00017993,2]
[403622712,1769424646282,-151.0,0.00017993,2]
[403622713,1769424646291,-151.0,0.00017993,2]
[403622714,1769424646301,-151.0,0.00017993,2]
[403622715,1769424646311,-151.0,0.00017993,2]
[403622716,1769424646320,-151.0,0.00017993,2]
[403622717,1769424646329,-151.0,0.00017993,2]
[403622718,1769424646340,-151.0,0.00017993,2]
[403622719,1769424646349,-151.0,0.00017993,2]
[403622720,1769424646358,-746.02116,0.00017993,2]
[403622721,1769424646367,-746.02116,0.00017993,2]
[403622722,1769424646376,-746.02116,0.00017993,2]
[403622723,1769424646386,-151.0,0.00017993,2]
[403622724,1769424646396,-151.0,0.00017993,2]
[403622725,1769424646405,-746.02116,0.00017993,2]
[403622726,1769424646415,-151.0,0.00017993,2]
[403622727,1769424646424,-151.0,0.00017993,2]
[403622728,1769424646433,-151.0,0.00017993,2]
[403622729,1769424646443,-151.0,0.00017993,2]
[403622730,1769424646452,-151.0,0.00017993,2]
[403622731,1769424646462,-151.0,0.00017993,2]
[403622732,1769424646473,-851.64878,0.00017993,2]
[403622733,1769424646484,-851.64878,0.00017993,2]
[403622734,1769424646495,-151.0,0.00017993,2]
[403622735,1769424646504,-851.64878,0.00017993,2]
[403622736,1769424646514,-851.64878,0.00017993,2]
[403622737,1769424646523,-406.60306,0.00017993,2]
[403622738,1769424646532,-406.60306,0.00017993,2]
[403622739,1769424646542,-406.60306,0.00017993,2]
[403622740,1769424646552,-406.60306,0.00017993,2]
[403622741,1769424646561,-151.0,0.00017993,2]
[403622742,1769424646574,-151.0,0.00017993,2]
[403622743,1769424646583,-1731.180932,0.00017993,2]
[403622744,1769424646594,-151.0,0.00017993,2]
[403622745,1769424646603,-151.0,0.00017993,2]
[403622746,1769424646614,-1731.180932,0.00017993,2]
[403622747,1769424646624,-151.0,0.00017993,2]
[403622748,1769424646634,-151.0,0.00017993,2]
[403622749,1769424646643,-151.0,0.00017993,2]
[403622750,1769424646656,-151.0,0.00017993,2]
[403622751,1769424646666,-1731.180932,0.00017993,2]
[403622752,1769424646675,-209.180593,0.00017993,2]
[403622753,1769424646684,-151.0,0.00017993,2]
[403622754,1769424646693,-151.0,0.00017993,2]
[403622755,1769424646703,-151.0,0.00017993,2]
[403622756,1769424646716,-1731.180932,0.00017993,2]
[403622757,1769424646726,-151.0,0.00017993,2]
[403622758,1769424646735,-209.180593,0.00017993,2]
[403622759,1769424646745,-151.0,0.00017993,2]
[403622760,1769424646755,-209.180593,0.00017993,2]
[403622762,1769424646764,-151.0,0.00017993,2]
[403622763,1769424646773,-151.0,0.00017993,2]
[403622765,1769424646782,-151.0,0.00017993,2]
[403622767,1769424646791,-151.0,0.00017993,2]
[403622769,1769424646801,-209.180593,0.00017993,2]
[403622771,1769424646810,-151.0,0.00017993,2]
[403622772,1769424646820,-151.0,0.00017993,2]
[403622773,1769424646830,-151.0,0.00017993,2]
[403622774,1769424646839,-151.0,0.00017993,2]
[403622775,1769424646849,-154.082726,0.00017993,2]
[403622776,1769424646858,-3040.538721,0.00017993,2]
[403622777,1769424646868,-1731.499502,0.00017993,2]
[403622778,1769424646877,-151.0,0.00017993,2]
[403622779,1769424646887,-3040.538721,0.00017993,2]
[403622780,1769424646897,-1731.499502,0.00017993,2]
[403622781,1769424646908,-151.0,0.00017993,2]
[403622782,1769424646920,-154.082726,0.00017993,2]
[403622783,1769424646930,-3040.538721,0.00017993,2]
[403622784,1769424646940,-151.0,0.00017993,2]
[403622785,1769424646950,-1731.499502,0.00017993,2]
[403622786,1769424646961,-151.0,0.00017993,2]
[403622787,1769424646970,-154.082726,0.00017993,2]
[403622788,1769424646980,-3040.538721,0.00017993,2]
[403622789,1769424646993,-1731.499502,0.00017993,2]
[403622790,1769424647003,-154.082726,0.00017993,2]
[403622791,1769424647018,-151.0,0.00017993,2]
[403622792,1769424647028,-151.0,0.00017993,2]
[403622793,1769424647038,-1186.881386,0.00017993,2]
[403622794,1769424647048,-1186.881386,0.00017993,2]
[403622795,1769424647059,-1186.881386,0.00017993,2]
[403622796,1769424647070,-1186.881386,0.00017993,2]
[403622797,1769424647079,-151.0,0.00017993,2]
[403622798,1769424647089,-154.388537,0.00017993,2]
[403622799,1769424647099,-826.626296,0.00017993,2]
[403622800,1769424647108,-151.0,0.00017993,2]
[403622801,1769424647118,-151.0,0.00017993,2]
[403622802,1769424647129,-826.626296,0.00017993,2]
[403622803,1769424647138,-826.626296,0.00017993,2]
[403622804,1769424647148,-435.844699,0.00017993,2]
[403622805,1769424647240,-826.626296,0.00017993,2]
[403622806,1769424647250,-435.844699,0.00017993,2]
[403622807,1769424647259,-151.0,0.00017993,2]
[403622808,1769424647267,-435.844699,0.00017993,2]
[403622809,1769424647284,-151.0,0.00017993,2]
[403622810,1769424647296,-435.844699,0.00017993,2]
[403622811,1769424647306,-151.0,0.00017993,2]
[403622812,1769424647315,-151.0,0.00017993,2]
[403622813,1769424647325,-151.0,0.00017993,2]
[403622814,1769424647334,-382.143284,0.00017993,2]
[403622815,1769424647344,-151.0,0.00017993,2]
[403622816,1769424647355,-151.0,0.00017993,2]